lending/lending_fUSD_20251121
["ID","MTS","AMOUNT","RATE_DAILY","PERIOD"]
[394572126,1763724642584,-500.0,0.00016999,2]
[394572127,1763724642593,-500.0,0.00016999,2]
[394572128,1763724642603,-500.0,0.00016999,2]
[394572129,1763724642613,-283.39823567,0.00016999,2]
[394572130,1763724642622,-500.0,0.00016999,2]
[394572131,1763724642632,-501.59085028,0.00016999,2]
[394572132,1763724642642,-2151636.48077472,0.00017,2]
[394572133,1763724642651,-151.0,0.00017,2]
[394572134,1763724642660,-151.0,0.00017,2]
[394572135,1763724642669,-151.0,0.00017,2]
[394572136,1763724642678,-151.0,0.00017,2]
[394572137,1763724642687,-151.0,0.00017,2]
[394572138,1763724642697,-172.023602,0.00017,2]
[394572139,1763724642706,-157.352375,0.00017,2]
[394572140,1763724642715,-172.023602,0.00017,2]
[394572141,1763724642724,-172.023602,0.00017,2]
[394572142,1763724642733,-172.023602,0.00017,2]
[394572143,1763724642743,-151.0,0.00017,2]
[394572144,1763724642769,-151.0,0.00017,2]
[394572145,1763724642779,-151.0,0.00017,2]
[394572146,1763724642788,-151.488414,0.00017,2]
[394572147,1763724642797,-151.0,0.00017,2]
[394572148,1763724642806,-157.885908,0.00017,2]
[394572149,1763724642815,-151.0,0.00017,2]
[394572150,1763724642825,-152.272833,0.00017,2]
[394572151,1763724642834,-151.0,0.00017,2]
[394572152,1763724642843,-151.0,0.00017,2]
[394572153,1763724642852,-151.0,0.00017,2]
[394572154,1763724642862,-155.430847,0.00017,2]
[394572155,1763724642871,-151.0,0.00017,2]
[394572156,1763724642881,-151.0,0.00017,2]
[394572157,1763724642890,-151.0,0.00017,2]
[394572158,1763724642900,-151.0,0.00017,2]
[394572159,1763724642909,-151.0,0.00017,2]
[394572160,1763724642918,-151.0,0.00017,2]
[394572161,1763724642927,-151.0,0.00017,2]
[394572162,1763724642936,-151.0,0.00017,2]
[394572163,1763724642945,-151.0,0.00017,2]
[394572164,1763724642954,-151.0,0.00017,2]
[394572165,1763724642963,-151.0,0.00017,2]
[394572166,1763724642973,-151.0,0.00017,2]
[394572167,1763724642986,-151.0,0.00017,2]
[394572168,1763724642995,-151.0,0.00017,2]
[394572169,1763724643005,-151.0,0.00017,2]
[394572170,1763724643015,-152.437446,0.00017,2]
[394572171,1763724643024,-268.112522,0.00017,2]
[394572172,1763724643034,-151.0,0.00017,2]
[394572173,1763724643044,-151.0,0.00017,2]
[394572174,1763724643055,-151.0,0.00017,2]
[394572175,1763724643069,-151.0,0.00017,2]
[394572176,1763724643079,-151.0,0.00017,2]
[394572177,1763724643089,-151.0,0.00017,2]
[394572178,1763724643098,-151.0,0.00017,2]
[394572179,1763724643108,-169.401579,0.00017,2]
[394572180,1763724643117,-330.007428,0.00017,2]
[394572181,1763724643127,-330.007428,0.00017,2]
[394572182,1763724643137,-330.007428,0.00017,2]
[394572183,1763724643145,-330.007428,0.00017,2]
[394572184,1763724643155,-330.007428,0.00017,2]
[394572185,1763724643164,-330.007428,0.00017,2]
[394572186,1763724643174,-271.087517,0.00017,2]
[394572187,1763724643183,-330.007428,0.00017,2]
[394572188,1763724643192,-271.087517,0.00017,2]
[394572189,1763724643201,-330.007428,0.00017,2]
[394572190,1763724643211,-271.087517,0.00017,2]
[394572191,1763724643220,-271.087517,0.00017,2]
[394572192,1763724643229,-271.087517,0.00017,2]
[394572193,1763724643238,-271.087517,0.00017,2]
[394572194,1763724643247,-151.0,0.00017,2]
[394572195,1763724643257,-151.0,0.00017,2]
[394572196,1763724643266,-271.087517,0.00017,2]
[394572197,1763724643275,-271.087517,0.00017,2]
[394572198,1763724643287,-151.0,0.00017,2]
[394572199,1763724643297,-256.127135,0.00017,2]
[394572200,1763724643306,-151.0,0.00017,2]
[394572201,1763724643315,-151.0,0.00017,2]
[394572202,1763724643323,-151.0,0.00017,2]
[394572203,1763724643333,-151.0,0.00017,2]
[394572204,1763724643341,-246.905828,0.00017,2]
[394572205,1763724643350,-269.572529,0.00017,2]
[394572206,1763724643360,-151.0,0.00017,2]
[394572207,1763724643369,-151.0,0.00017,2]
[394572208,1763724643378,-151.0,0.00017,2]
[394572209,1763724643388,-151.0,0.00017,2]
[394572210,1763724643397,-167.765431,0.00017,2]
[394572211,1763724643406,-152.354002,0.00017,2]
[394572212,1763724643415,-663.82444,0.00017,2]
[394572213,1763724643424,-663.82444,0.00017,2]
[394572214,1763724643433,-663.82444,0.00017,2]
[394572215,1763724643442,-663.82444,0.00017,2]
[394572216,1763724643451,-241.786263,0.00017,2]
[394572217,1763724643461,-241.786263,0.00017,2]
[394572218,1763724643470,-241.786263,0.00017,2]
[394572219,1763724643479,-151.0,0.00017,2]
[394572220,1763724643489,-157.445923,0.00017,2]
[394572221,1763724643498,-663.82444,0.00017,2]
[394572222,1763724643508,-151.0,0.00017,2]
[394572224,1763724643518,-151.0,0.00017,2]
[394572225,1763724643528,-663.82444,0.00017,2]
[394572226,1763724643537,-663.82444,0.00017,2]
[394572227,1763724643546,-157.33898,0.00017,2]
[394572228,1763724643555,-157.33898,0.00017,2]
[394572229,1763724643565,-157.33898,0.00017,2]
[394572230,1763724643574,-157.33898,0.00017,2]
[394572231,1763724643585,-249.002224,0.00017,2]
[394572232,1763724643594,-249.002224,0.00017,2]
[394572233,1763724643603,-249.002224,0.00017,2]
[394572234,1763724643613,-249.002224,0.00017,2]
[394572235,1763724643622,-249.002224,0.00017,2]
[394572236,1763724643631,-249.002224,0.00017,2]
[394572237,1763724643641,-249.002224,0.00017,2]
[394572238,1763724643650,-249.002224,0.00017,2]
[394572239,1763724643659,-151.0,0.00017,2]
[394572240,1763724643669,-156.124108,0.00017,2]
[394572241,1763724643679,-250.0,0.00017,2]
[394572242,1763724643687,-151.0,0.00017,2]
[394572243,1763724643698,-151.0,0.00017,2]
[394572244,1763724643709,-150.0,0.00017,2]
[394572246,1763724643719,-288.65065849,0.00017,2]
[394572247,1763724643728,-203.72254736,0.00017,2]
[394572248,1763724643738,-150.0,0.00017,2]
[394572249,1763724643747,-150.0,0.00017,2]
[394572250,1763724643756,-205.51892774,0.00017,2]
[394572251,1763724643765,-151.0,0.00017,2]
[394572252,1763724643774,-2000.0,0.00017,2]
[394572253,1763724643784,-178.23248542,0.00017,2]
[394572254,1763724643793,-1742829.46317538,0.00017,2]
[394572255,1763724644623,6315.68,8.481e-05,2]
[394572256,1763724644719,1052.98,8.885e-05,2]
[394572257,1763724644743,5262.7,8.885e-05,2]
[394572258,1763724644821,6315.68,9.289e-05,2]
[394572259,1763724644873,6315.68,9.693e-05,2]
[394572260,1763724644929,6315.68,0.00010096,2]
[394572262,1763724645081,6315.68,0.000105,2]
[394572268,1763724645130,6315.68,0.00010904,2]
[394572277,1763724645199,6315.68,0.00011308,2]
[394572278,1763724645216,-624.43,0.00016599,2]
[394572279,1763724645225,-624.43,0.00016855,2]
[394572280,1763724645235,-624.43,0.00016999,2]
[394572281,1763724645245,-624.43,0.00016999,2]
[394572282,1763724645254,-624.43,0.00016999,2]
[394572283,1763724645264,-624.43,0.00016999,2]
[394572284,1763724645274,-624.43,0.00016999,2]
[394572285,1763724645283,-15629.23109,0.00017,2]
[394572286,1763724645428,-372.34049029,0.00017,2]
[394572287,1763724645440,-393.66239999,0.00017,2]
[394572288,1763724645483,6315.68,0.00011712,2]
[394572289,1763724645501,-624.43,0.00016999,2]
[394572290,1763724645512,-1239.06647113,0.00017,2]
[394572291,1763724645707,-1.7e-07,0.00017,2]
[394572292,1763724645734,6315.68,0.00012116,2]
[394572293,1763724645867,6315.68,0.0001252,2]
[394572294,1763724645918,6315.68,0.00012923,2]
[394572295,1763724645968,6315.68,0.00013327,2]
[394572297,1763724646009,6315.68,0.00013731,2]
[394572298,1763724646050,6315.68,0.00014135,2]
[394572299,1763724646096,6315.68,0.00014539,2]
[394572300,1763724646250,6315.68,0.00014943,2]
[394572301,1763724646306,6315.68,0.00015347,2]
[394572302,1763724646406,-500.0,0.00015591,2]
[394572303,1763724646416,-205.08566523,0.00015888,2]
[394572304,1763724646425,-624.43,0.00016999,2]
[394572305,1763724646435,-624.43,0.00016999,2]
[394572306,1763724646445,-624.43,0.00016999,2]
[394572307,1763724646456,-80644.81154859,0.00017,2]
[394572308,1763724646507,-221.728,0.00017,2]
[394572327,1763724647428,-150.000001,0.00015888,2]
[394572328,1763724647438,-150.0,0.00015888,2]
[394572329,1763724647447,-32.763999,0.00015888,2]
[394572330,1763724647463,-117.236001,0.00015888,2]
[394572331,1763724647473,-332.43850984,0.0001589,2]
[394572332,1763724647630,10000.01,0.00015788,2]
[394572333,1763724748080,2751.0,0.00015347,2]
[394572334,1763724763440,-1852.42,0.00015623,2]
[394572335,1763724763850,-6315.68,0.00015691,2]
[394572336,1763724763956,-354.627098,0.00015691,2]
[394572337,1763724763972,-10000.01,0.00015691,2]
[394572338,1763724764041,-10000.01,0.00015691,2]
[394572339,1763724764157,-10000.01,0.00015691,2]
[394572340,1763724766539,-10000.01,0.00015691,2]
[394572341,1763724766796,-10000.01,0.00015691,2]
[394572342,1763724766824,-10000.01,0.00015691,2]
[394572343,1763724766983,-10000.01,0.00015691,2]
[394572344,1763724769921,-10000.01,0.00015691,2]
[394572345,1763724770108,-10000.01,0.00015691,2]
[394572346,1763724770248,-10000.01,0.00015691,2]
[394572347,1763724770345,-10000.01,0.00015691,2]
[394572348,1763724773369,-210.87239285,0.00015623,2]
[394572349,1763724773412,-9578.2652143,0.00015691,2]
[394572350,1763724773580,-10000.01,0.00015691,2]
[394572351,1763724774005,-218.44634236,0.00015691,2]
[394572352,1763724776255,-10000.01,0.00015691,2]
[394572353,1763724776592,-10000.01,0.00015691,2]
[394572354,1763724776647,-10000.01,0.00015691,2]
[394572355,1763724778838,355.9,0.00014893,2]
[394572356,1763724779512,-10000.01,0.00015691,2]
[394572357,1763724779698,-10000.01,0.00015691,2]
[394572358,1763724799248,-300.0,0.0001569,2]
[394572359,1763724799294,-9400.01,0.00015691,2]
[394572360,1763724799466,-10000.01,0.00015691,2]
[394572361,1763724799578,-10000.01,0.00015691,2]
[394572362,1763724799747,-10000.01,0.00015691,2]
[394572363,1763724799811,-10000.01,0.00015691,2]
[394572364,1763724799945,-10000.01,0.00015691,2]
[394572365,1763724800046,-10000.01,0.00015691,2]
[394572366,1763724800161,-10000.01,0.00015691,2]
[394572367,1763724800281,-10000.01,0.00015691,2]
[394572368,1763724805406,-10000.01,0.00015691,2]
[394572369,1763724805833,-10000.01,0.00015691,2]
[394572370,1763724805960,-10000.01,0.00015691,2]
[394572371,1763724806122,-10000.01,0.00015691,2]
[394572372,1763724806219,-10000.01,0.00015691,2]
[394572373,1763724806338,-10000.01,0.00015691,2]
[394572374,1763724806469,-10000.01,0.00015691,2]
[394572375,1763724806803,-10000.01,0.00015691,2]
[394572376,1763724806918,-10000.01,0.00015691,2]
[394572379,1763724809305,-8382.86776369,0.00015691,2]
[394572380,1763724811661,201.91,0.00015,2]
[394572381,1763724824149,-248.1495,0.00015527,2]
[394572382,1763724824190,-9503.711,0.00015691,2]
[394572383,1763724824383,-10000.01,0.00015691,2]
[394572384,1763724824570,-10000.01,0.00015691,2]
[394572385,1763724824700,-10000.01,0.00015691,2]
[394572386,1763724824802,-10000.01,0.00015691,2]
[394572387,1763724824953,-10000.01,0.00015691,2]
[394572388,1763724830595,-10000.01,0.00015691,2]
[394572389,1763724830802,-10000.01,0.00015691,2]
[394572390,1763724830867,-10000.01,0.00015691,2]
[394572391,1763724831005,-10000.01,0.00015691,2]
[394572392,1763724831121,-10000.01,0.00015691,2]
[394572393,1763724831495,-10000.01,0.00015691,2]
[394572394,1763724850544,150.0,0.00014893,2]
[394572395,1763724933060,1000.0,0.00014,2]
[394572396,1763724983059,689.0,0.00016,5]
[394572397,1763725010955,255.96,0.00014893,2]
[394572398,1763725109199,-2500.0,0.00015591,2]
[394572399,1763725109227,-250.0,0.00015591,2]
[394572400,1763725109255,-239.36771373,0.00015591,2]
[394572401,1763725109283,-620.0,0.000156,2]
[394572402,1763725109311,-1145.62177275,0.00015621,2]
[394572403,1763725109630,-490.03102704,0.00015621,2]
[394572404,1763725112210,-405.32680517,0.00015621,2]
[394572405,1763725112242,-620.0,0.00015645,2]
[394572406,1763725112270,-1200.0,0.00015681,2]
[394572407,1763725112300,-151.0,0.00015682,2]
[394572408,1763725112329,-151.0,0.00015682,2]
[394572409,1763725112357,-151.0,0.00015682,2]
[394572410,1763725112384,-151.0,0.00015682,2]
[394572411,1763725112411,-151.0,0.00015682,2]
[394572412,1763725112438,-151.0,0.00015682,2]
[394572413,1763725112465,-151.0,0.00015682,2]
[394572414,1763725112492,-151.0,0.00015682,2]
[394572415,1763725112518,-151.0,0.00015682,2]
[394572416,1763725112545,-151.0,0.00015682,2]
[394572417,1763725112572,-151.0,0.00015682,2]
[394572418,1763725112598,-151.0,0.00015682,2]
[394572419,1763725112628,-151.0,0.00015682,2]
[394572420,1763725112659,-151.0,0.00015682,2]
[394572421,1763725112690,-151.0,0.00015682,2]
[394572422,1763725112719,-259.03096989,0.00015682,2]
[394572423,1763725113126,-501.29444988,0.00015682,2]
[394572424,1763725117325,200.0,0.00015392,2]
[394572425,1763725118521,-118.70555012,0.00015682,2]
[394572426,1763725118551,-620.0,0.00015684,2]
[394572427,1763725118579,-300.0,0.00015689,2]
[394572428,1763725118610,-500.0,0.0001569,2]
[394572429,1763725118639,-155.42419927,0.0001569,2]
[394572430,1763725118672,-500.0,0.0001569,2]
[394572431,1763725118701,-500.0,0.0001569,2]
[394572432,1763725118734,-500.0,0.0001569,2]
[394572433,1763725118981,-500.0,0.0001569,2]
[394572434,1763725119011,-500.0,0.0001569,2]
[394572435,1763725119043,-500.0,0.0001569,2]
[394572436,1763725119073,-111.75050122,0.0001569,2]
[394572437,1763725119355,-388.24949878,0.0001569,2]
[394572438,1763725121753,-500.0,0.0001569,2]
[394572439,1763725121784,-500.0,0.0001569,2]
[394572440,1763725121816,-500.0,0.0001569,2]
[394572441,1763725121850,-500.0,0.0001569,2]
[394572442,1763725121886,-500.0,0.0001569,2]
[394572443,1763725121919,-500.0,0.0001569,2]
[394572444,1763725121952,-500.0,0.0001569,2]
[394572445,1763725121985,-500.0,0.0001569,2]
[394572446,1763725122018,-176.90349296,0.0001569,2]
[394572447,1763725122050,-500.0,0.0001569,2]
[394572448,1763725122082,-146.20301408,0.0001569,2]
[394572449,1763725122279,-353.79698592,0.0001569,2]
[394572450,1763725205415,9881.73,0.00015392,2]
[394572451,1763725245111,1000.0,0.00013699,2]
[394572452,1763725261007,251.75,0.00012313,2]
[394572453,1763725261090,251.75,0.00013545,2]
[394572454,1763725261243,251.75,0.00014776,2]
[394572456,1763725277010,4036.22,0.0001503,2]
[394572457,1763725303476,166.66,0.0001429,2]
[394572458,1763725303677,166.66,0.00014591,2]
[394572459,1763725303885,166.66,0.00014892,2]
[394572460,1763725304066,166.66,0.00015193,2]
[394572461,1763725304291,166.66,0.00015494,2]
[394572465,1763725381958,-2500.0,0.00015591,2]
[394572466,1763725381998,-5000.01,0.00015591,2]
[394572467,1763725382150,-10000.01,0.00015591,2]
[394572468,1763725384534,-10000.01,0.00015591,2]
[394572469,1763725386621,4207.7,0.00015392,2]
[394572470,1763725391092,-10000.01,0.00015591,2]
[394572471,1763725403936,1192.44449903,0.00014546,2]
[394572472,1763725406606,1581.75452667,0.00014546,2]
[394572473,1763725413382,1034.07963541,0.00014546,2]
[394572474,1763725458913,-166.67,0.00015525,2]
[394572475,1763725458948,-62.7257762,0.00015558,2]
[394572476,1763725461812,-170.90259371,0.00015558,2]
[394572477,1763725467771,11461.97,0.00015077,2]
[394572478,1763725481858,245.15,0.00015074,2]
[394572479,1763725506086,200.4318045,0.00014999,2]
[394572480,1763725512155,150.0,0.00015288,2]
[394572481,1763725512237,150.0,0.00015288,2]
[394572482,1763725512456,150.0,0.00015288,2]
[394572483,1763725519607,150.0,0.00015288,2]
[394572484,1763725519740,150.0,0.00015288,2]
[394572485,1763725519899,150.0,0.00015288,2]
[394572486,1763725533488,224.70035689,0.00015288,2]
[394572487,1763725533731,150.0,0.00015288,2]
[394572488,1763725533893,150.0,0.00015288,2]
[394572495,1763725642266,-32.26387312,0.00015558,2]
[394572496,1763725642294,-300.0,0.0001559,2]
[394572497,1763725642385,-9335.48225376,0.00015591,2]
[394572507,1763725655132,-10000.01,0.00015591,2]
[394572508,1763725660965,5521.0,0.00015,5]
[394572509,1763725673604,150.0,0.000155,2]
[394572510,1763725691751,805.0,0.00015,5]
[394572511,1763725775351,569.12336613,0.00015,2]
[394572513,1763725831305,1500.0,0.00015104,2]
[394572514,1763725831506,-300.0,0.0001559,2]
[394572515,1763725831518,-34102.04904624,0.00015591,2]
[394572516,1763725831529,-180.42895222,0.00015591,2]
[394572517,1763725831539,-1109.7478,0.00015591,2]
[394572518,1763725831549,-265.845273,0.00015591,2]
[394572519,1763725831559,-230.23173632,0.00015591,2]
[394572520,1763725831568,-920.23425546,0.00015621,2]
[394572521,1763725831581,-551.85326427,0.00015621,2]
[394572522,1763725831592,-500.0,0.0001569,2]
[394572523,1763725831602,-202.5648225,0.0001569,2]
[394572525,1763725831614,-297.4351775,0.0001569,2]
[394572527,1763725831626,-525.56,0.0001569,2]
[394572529,1763725831635,-500.0,0.0001569,2]
[394572531,1763725831644,-500.0,0.0001569,2]
[394572533,1763725831654,-503.23,0.0001569,2]
[394572534,1763725831663,-500.0,0.0001569,2]
[394572536,1763725831674,-491.52688316,0.0001569,2]
[394572566,1763725835494,-8.47311684,0.0001569,2]
[394572567,1763725835515,-441.14695536,0.0001569,2]
[394572568,1763725837038,-58.85304464,0.0001569,2]
[394572569,1763725837060,-249.41771435,0.0001569,2]
[394572570,1763725837088,-369.88253031,0.0001569,2]
[394572571,1763725837109,-249.41771435,0.0001569,2]
[394572572,1763725837131,-369.88253031,0.0001569,2]
[394572573,1763725837152,-355.9,0.0001572,2]
[394572574,1763725837173,-570.5854,0.00015753,2]
[394572575,1763725837195,-1000.0,0.00015786,2]
[394572576,1763725837216,-644.98766055,0.00015786,2]
[394572589,1763725837532,-8607.25233945,0.00015786,2]
[394572590,1763725837542,-150.99,0.00015786,2]
[394572591,1763725837551,-1537.35,0.00015786,2]
[394572592,1763725837561,-7690.12,0.00015786,2]
[394572593,1763725837570,-4866.76,0.00015786,2]
[394572594,1763725837579,-999.99,0.00015786,2]
[394572596,1763725837588,-2994.48,0.00015786,2]
[394572598,1763725837597,-9999.99,0.00015786,2]
[394572600,1763725837606,-1524.63,0.00015786,2]
[394572602,1763725837616,-500.0,0.00015787,2]
[394572604,1763725837625,-500.0,0.00015787,2]
[394572605,1763725837636,-500.0,0.00015787,2]
[394572607,1763725837646,-500.0,0.00015787,2]
[394572609,1763725837655,-500.0,0.00015787,2]
[394572611,1763725837664,-500.0,0.00015787,2]
[394572613,1763725837674,-500.0,0.00015787,2]
[394572615,1763725837683,-500.0,0.00015787,2]
[394572643,1763725837925,-500.0,0.00015787,2]
[394572645,1763725837939,-500.0,0.00015787,2]
[394572647,1763725837948,-500.0,0.00015787,2]
[394572649,1763725837957,-500.0,0.00015787,2]
[394572651,1763725837966,-500.0,0.00015787,2]
[394572653,1763725837975,-500.0,0.00015787,2]
[394572655,1763725837984,-500.0,0.00015787,2]
[394572657,1763725837994,-500.0,0.00015787,2]
[394572659,1763725838003,-500.0,0.00015787,2]
[394572661,1763725838012,-500.0,0.00015787,2]
[394572663,1763725838021,-500.0,0.00015787,2]
[394572665,1763725838030,-500.0,0.00015787,2]
[394572667,1763725838039,-500.0,0.00015787,2]
[394572669,1763725838049,-500.0,0.00015787,2]
[394572671,1763725838059,-500.0,0.00015787,2]
[394572673,1763725838068,-500.0,0.00015787,2]
[394572675,1763725838078,-500.0,0.00015787,2]
[394572677,1763725838087,-500.0,0.00015787,2]
[394572679,1763725838096,-500.0,0.00015787,2]
[394572681,1763725838106,-500.0,0.00015787,2]
[394572683,1763725838116,-500.0,0.00015787,2]
[394572685,1763725838131,-500.0,0.00015787,2]
[394572687,1763725838140,-500.0,0.00015787,2]
[394572689,1763725838150,-500.0,0.00015787,2]
[394572691,1763725838159,-500.0,0.00015787,2]
[394572692,1763725838168,-500.0,0.00015787,2]
[394572694,1763725838177,-500.0,0.00015787,2]
[394572695,1763725838186,-500.0,0.00015787,2]
[394572697,1763725838196,-500.0,0.00015787,2]
[394572699,1763725838205,-569.45656659,0.00015787,2]
[394572701,1763725838214,-500.0,0.00015787,2]
[394572703,1763725838224,-500.0,0.00015787,2]
[394572705,1763725838234,-500.0,0.00015787,2]
[394572707,1763725838244,-500.0,0.00015787,2]
[394572709,1763725838254,-500.0,0.00015787,2]
[394572711,1763725838264,-500.0,0.00015787,2]
[394572713,1763725838274,-500.0,0.00015787,2]
[394572715,1763725838283,-500.0,0.00015787,2]
[394572717,1763725838293,-500.0,0.00015787,2]
[394572719,1763725838302,-500.0,0.00015787,2]
[394572721,1763725838312,-500.0,0.00015787,2]
[394572723,1763725838322,-500.0,0.00015787,2]
[394572725,1763725838331,-500.0,0.00015787,2]
[394572727,1763725838340,-500.0,0.00015787,2]
[394572729,1763725838350,-500.0,0.00015787,2]
[394572731,1763725838360,-500.0,0.00015787,2]
[394572733,1763725838373,-500.0,0.00015787,2]
[394572735,1763725838383,-500.0,0.00015787,2]
[394572737,1763725838393,-500.0,0.00015787,2]
[394572739,1763725838404,-500.0,0.00015787,2]
[394572741,1763725838413,-500.0,0.00015787,2]
[394572743,1763725838423,-500.0,0.00015787,2]
[394572745,1763725838433,-500.0,0.00015787,2]
[394572747,1763725838444,-500.0,0.00015787,2]
[394572749,1763725838453,-500.0,0.00015787,2]
[394572751,1763725838463,-500.0,0.00015787,2]
[394572753,1763725838472,-500.0,0.00015787,2]
[394572755,1763725838481,-500.0,0.00015787,2]
[394572757,1763725838490,-500.0,0.00015787,2]
[394572759,1763725838499,-500.0,0.00015787,2]
[394572761,1763725838509,-500.0,0.00015787,2]
[394572763,1763725838519,-500.0,0.00015787,2]
[394572765,1763725838528,-500.0,0.00015787,2]
[394572767,1763725838537,-500.0,0.00015787,2]
[394572769,1763725838547,-400.0,0.00015787,2]
[394572771,1763725838556,-500.0,0.00015787,2]
[394572772,1763725838566,-500.0,0.00015787,2]
[394572773,1763725838575,-500.0,0.00015787,2]
[394572774,1763725838585,-500.0,0.00015787,2]
[394572775,1763725838595,-500.0,0.00015787,2]
[394572777,1763725838604,-500.0,0.00015787,2]
[394572779,1763725838613,-1625.81,0.00015787,2]
[394572780,1763725838623,-23353.1967,0.00015788,2]
[394572782,1763725838640,-166.66,0.00015794,2]
[394572784,1763725838651,-151.0,0.00015872,2]
[394572786,1763725838660,-151.0,0.00015873,2]
[394572788,1763725838670,-1472.08751973,0.00015874,2]
[394572790,1763725838679,-5888.0,0.00015885,2]
[394572792,1763725838688,-500.0,0.00015888,2]
[394572794,1763725838697,-414.63511225,0.00015888,2]
[394572796,1763725838706,-500.0,0.00015889,2]
[394572798,1763725838715,-623.02752587,0.00015889,2]
[394572800,1763725838724,-500.0,0.00015889,2]
[394572802,1763725838734,-500.0,0.00015889,2]
[394572803,1763725838743,-500.0,0.00015889,2]
[394572805,1763725838752,-525.56,0.00015889,2]
[394572807,1763725838761,-500.0,0.00015889,2]
[394572809,1763725838771,-500.0,0.00015889,2]
[394572811,1763725838780,-500.0,0.0001589,2]
[394572814,1763725838790,-500.0,0.0001589,2]
[394572815,1763725838800,-500.0,0.0001589,2]
[394572817,1763725838809,-428.02188527,0.0001589,2]
[394572820,1763725838820,-500.0,0.0001589,2]
[394572821,1763725838829,-500.0,0.0001589,2]
[394572823,1763725838839,-500.0,0.0001589,2]
[394572825,1763725838848,-500.0,0.0001589,2]
[394572827,1763725838858,-500.0,0.0001589,2]
[394572830,1763725838868,-500.0,0.0001589,2]
[394572832,1763725838878,-500.0,0.0001589,2]
[394572833,1763725838887,-448.48848381,0.00015891,2]
[394572835,1763725838897,-500.0,0.00015891,2]
[394572837,1763725838906,-500.0,0.00015891,2]
[394572839,1763725838916,-500.0,0.00015891,2]
[394572841,1763725838927,-170.54211254,0.00015891,2]
[394572843,1763725838936,-500.0,0.00015891,2]
[394572845,1763725838945,-500.0,0.00015891,2]
[394572847,1763725838955,-500.0,0.00015891,2]
[394572849,1763725838964,-500.0,0.00015891,2]
[394572851,1763725838974,-500.0,0.00015891,2]
[394572853,1763725838983,-245.75646741,0.00015891,2]
[394572855,1763725838992,-216.32674802,0.00015891,2]
[394572857,1763725839002,-500.0,0.00015891,2]
[394572859,1763725839011,-500.0,0.00015891,2]
[394572861,1763725839021,-205.47190216,0.00015996,2]
[394572863,1763725839030,-370.60602898,0.00015996,2]
[394572865,1763725839039,-369.47957446,0.00015996,2]
[394572867,1763725839049,-620.0,0.00015996,2]
[394572869,1763725839058,-254.28932719,0.00016,2]
[394572871,1763725839069,-200.0,0.00016,2]
[394572873,1763725839078,-200.0,0.00016,2]
[394572875,1763725839087,-251.75,0.00016007,2]
[394572877,1763725839097,-1625.81,0.00016061,2]
[394572879,1763725839107,-251.0,0.00016082,2]
[394572881,1763725839116,-620.0,0.00016106,2]